[Event "GrandPrix_29.05"]
[Site "Chess.com"]
[Date "2020.05.29"]
[Round "3"]
[White "Nikame"]
[Black "bratkoo"]
[Result "1-0"]
[WhiteElo "2299"]
[BlackElo "2096"]
[TimeControl "600+2"]
[EndTime "10:17:10 PDT"]
[Termination "Nikame won by resignation"]

1. d4 {[%clk 0:09:58.7]} 1... e6 {[%clk 0:10:00]} 2. e4 {[%clk 0:09:56]} 2... d5
{[%clk 0:10:00.4]} 3. exd5 {[%clk 0:09:56.9]} 3... exd5 {[%clk 0:10:00.9]} 4.
Nf3 {[%clk 0:09:55.7]} 4... Nc6 {[%clk 0:10:01.3]} 5. Bd3 {[%clk 0:09:49.2]}
5... Bg4 {[%clk 0:10:00.7]} 6. c3 {[%clk 0:09:39.2]} 6... Bd6 {[%clk 0:09:57.8]}
7. h3 {[%clk 0:09:35.9]} 7... Bh5 {[%clk 0:09:57.1]} 8. Be3 {[%clk 0:09:18]}
8... Nge7 {[%clk 0:09:54.7]} 9. Nbd2 {[%clk 0:09:18.5]} 9... Qd7 {[%clk
0:09:54.1]} 10. Qc2 {[%clk 0:09:11.7]} 10... a6 {[%clk 0:09:51]} 11. O-O {[%clk
0:09:04.5]} 11... O-O {[%clk 0:09:41.5]} 12. Bxh7+ {[%clk 0:09:02.6]} 12... Kh8
{[%clk 0:09:42.4]} 13. Bd3 {[%clk 0:09:03.1]} 13... f5 {[%clk 0:09:43]} 14. Bg5
{[%clk 0:08:57.7]} 14... Ng6 {[%clk 0:09:41.2]} 15. Rfe1 {[%clk 0:08:50.7]}
15... Nf4 {[%clk 0:09:38.5]} 16. Ne5 {[%clk 0:08:40.7]} 16... Bxe5 {[%clk
0:08:58.2]} 17. dxe5 {[%clk 0:08:39.3]} 17... Nxd3 {[%clk 0:08:55.4]} 18. Qxd3
{[%clk 0:08:35.4]} 18... Rae8 {[%clk 0:08:54.9]} 19. f4 {[%clk 0:08:32.6]} 19...
Bf7 {[%clk 0:08:47.6]} 20. Nf3 {[%clk 0:08:29.6]} 20... Kg8 {[%clk 0:08:44.2]}
21. Rad1 {[%clk 0:08:28.1]} 21... Be6 {[%clk 0:08:41.4]} 22. Qe3 {[%clk
0:08:26.1]} 22... Qf7 {[%clk 0:08:40.3]} 23. Bh4 {[%clk 0:08:14.1]} 23... Qh5
{[%clk 0:08:36.8]} 24. Bf2 {[%clk 0:08:12.9]} 24... b6 {[%clk 0:08:18.7]} 25.
Ng5 {[%clk 0:08:13.2]} 25... Qg6 {[%clk 0:08:19.4]} 26. Rd3 {[%clk 0:08:03.7]}
26... Na5 {[%clk 0:08:17.8]} 27. b3 {[%clk 0:07:52]} 27... Rd8 {[%clk
0:08:01.7]} 28. Qf3 {[%clk 0:07:46.6]} 28... Rfe8 {[%clk 0:07:49.4]} 29. Red1
{[%clk 0:07:46.3]} 29... Bc8 {[%clk 0:07:46.6]} 30. h4 {[%clk 0:07:14.4]} 30...
Bb7 {[%clk 0:07:47.5]} 31. h5 {[%clk 0:07:14.9]} 31... Qh6 {[%clk 0:07:44]} 32.
Qh3 {[%clk 0:07:05.7]} 32... Rf8 {[%clk 0:07:34.4]} 33. e6 {[%clk 0:06:58.1]}
33... Rde8 {[%clk 0:07:32.6]} 34. Re3 {[%clk 0:06:43.5]} 34... Qf6 {[%clk
0:07:24.1]} 35. Re5 {[%clk 0:06:41.8]} 35... c5 {[%clk 0:07:19]} 36. Bh4 {[%clk
0:06:34.5]} 36... Qh6 {[%clk 0:06:49.3]} 37. e7 {[%clk 0:06:16.2]} 37... Rf6
{[%clk 0:06:47.3]} 38. Nf3 {[%clk 0:06:16]} 38... Rf7 {[%clk 0:06:32.1]} 39. Bg5
{[%clk 0:06:14.7]} 39... Qd6 {[%clk 0:06:29.4]} 40. Rxf5 {[%clk 0:06:14]} 40...
Bc8 {[%clk 0:06:30]} 41. Rfxd5 {[%clk 0:06:02]} 41... Qxd5 {[%clk 0:06:23.9]}
42. Rxd5 {[%clk 0:06:03.5]} 42... Bxh3 {[%clk 0:06:24.7]} 43. Rd8 {[%clk
0:05:57.7]} 43... Bd7 {[%clk 0:05:50]} 44. Ne5 {[%clk 0:05:57.6]} 44... Bc6
{[%clk 0:05:07.4]} 45. Nxc6 {[%clk 0:05:53.9]} 45... Rxe7 {[%clk 0:05:07.6]} 46.
Nxe7+ {[%clk 0:05:53.1]} 46... Kf7 {[%clk 0:05:08.7]} 47. Rxe8 {[%clk
0:05:52.6]} 47... Kxe8 {[%clk 0:05:10.2]} 1-0

[Event "GrandPrix_29.05"]
[Site "Chess.com"]
[Date "2020.05.29"]
[Round "3"]
[White "Armen_Barseghyan"]
[Black "LANCELOT96"]
[Result "1-0"]
[WhiteElo "2301"]
[BlackElo "2099"]
[TimeControl "600+2"]
[EndTime "10:17:11 PDT"]
[Termination "Armen_Barseghyan won by resignation"]

1. d4 {[%clk 0:10:01.9]} 1... d5 {[%clk 0:10:00.7]} 2. c4 {[%clk 0:10:02.2]}
2... c6 {[%clk 0:10:02.3]} 3. Nf3 {[%clk 0:10:03]} 3... dxc4 {[%clk 0:10:03.4]}
4. a4 {[%clk 0:10:02.7]} 4... b5 {[%clk 0:10:01.6]} 5. e3 {[%clk 0:10:00.6]}
5... Bb7 {[%clk 0:09:58.5]} 6. Nc3 {[%clk 0:10:01.2]} 6... a6 {[%clk 0:09:56.3]}
7. Be2 {[%clk 0:10:00.3]} 7... Nd7 {[%clk 0:09:56.3]} 8. O-O {[%clk 0:10:00.5]}
8... e6 {[%clk 0:09:57.7]} 9. e4 {[%clk 0:09:57.8]} 9... Ngf6 {[%clk 0:09:58.4]}
10. b3 {[%clk 0:09:58.1]} 10... cxb3 {[%clk 0:09:58.9]} 11. Qxb3 {[%clk
0:10:00]} 11... Be7 {[%clk 0:09:59.4]} 12. Rd1 {[%clk 0:09:59.2]} 12... b4
{[%clk 0:09:55.5]} 13. Na2 {[%clk 0:09:57.2]} 13... Nxe4 {[%clk 0:09:53.1]} 14.
Nxb4 {[%clk 0:09:31]} 14... O-O {[%clk 0:09:53.5]} 15. Nd3 {[%clk 0:09:09.4]}
15... Rb8 {[%clk 0:09:53.6]} 16. Ba3 {[%clk 0:08:40.5]} 16... a5 {[%clk
0:09:24]} 17. Qc2 {[%clk 0:08:37.9]} 17... Bxa3 {[%clk 0:09:17.3]} 18. Rxa3
{[%clk 0:08:37.6]} 18... Qe7 {[%clk 0:09:18.5]} 19. Raa1 {[%clk 0:08:23.4]}
19... c5 {[%clk 0:09:16.6]} 20. dxc5 {[%clk 0:07:54.3]} 20... Ndxc5 {[%clk
0:09:17.4]} 21. Nxc5 {[%clk 0:07:53.7]} 21... Qxc5 {[%clk 0:09:11.2]} 22. Qxc5
{[%clk 0:07:52.7]} 22... Nxc5 {[%clk 0:09:12.5]} 23. Bb5 {[%clk 0:07:53.3]}
23... Bxf3 {[%clk 0:09:12.7]} 24. gxf3 {[%clk 0:07:53.5]} 24... g6 {[%clk
0:09:06]} 25. Rac1 {[%clk 0:07:53.3]} 25... Rfc8 {[%clk 0:09:06.7]} 26. Rc3
{[%clk 0:07:37.3]} 26... Rc7 {[%clk 0:08:38.5]} 27. Rdc1 {[%clk 0:06:54.6]}
27... Rbc8 {[%clk 0:08:39.4]} 28. Bd7 {[%clk 0:06:36.6]} 28... Rxd7 {[%clk
0:08:34.9]} 29. Rxc5 {[%clk 0:06:37.2]} 29... Rxc5 {[%clk 0:08:34.3]} 30. Rxc5
{[%clk 0:06:39.1]} 30... Rd5 {[%clk 0:08:35.8]} 31. Rc8+ {[%clk 0:06:39]} 31...
Kg7 {[%clk 0:08:36.9]} 32. Ra8 {[%clk 0:06:40.2]} 32... h5 {[%clk 0:08:36]} 33.
Ra7 {[%clk 0:06:40.5]} 33... g5 {[%clk 0:08:36.8]} 34. h3 {[%clk 0:06:40.6]}
34... Kg6 {[%clk 0:08:38]} 35. Kg2 {[%clk 0:06:41.3]} 35... f6 {[%clk
0:08:39.3]} 36. Ra6 {[%clk 0:06:41]} 36... Kf5 {[%clk 0:08:40.2]} 37. Kg3 {[%clk
0:06:41.1]} 37... h4+ {[%clk 0:08:40.6]} 38. Kg2 {[%clk 0:06:41.7]} 38... Re5
{[%clk 0:08:12]} 39. Rc6 {[%clk 0:06:35.2]} 39... Kg6 {[%clk 0:07:40.7]} 40. Ra6
{[%clk 0:06:34.3]} 40... f5 {[%clk 0:07:40.6]} 41. Ra8 {[%clk 0:06:30]} 41...
Rc5 {[%clk 0:07:37.1]} 42. Ra6 {[%clk 0:06:29.1]} 42... Kf6 {[%clk 0:07:38.1]}
43. Ra7 {[%clk 0:06:27]} 43... Ke5 {[%clk 0:07:39.1]} 44. Ra6 {[%clk 0:06:27.6]}
44... Kd5 {[%clk 0:07:40.4]} 45. Rb6 {[%clk 0:06:23.1]} 45... Kc4 {[%clk
0:07:28]} 46. Rxe6 {[%clk 0:05:23.5]} 46... Kb4 {[%clk 0:07:28.1]} 47. f4 {[%clk
0:05:03.9]} 47... gxf4 {[%clk 0:07:28.1]} 48. Rh6 {[%clk 0:05:04.1]} 48... Kxa4
{[%clk 0:07:29.2]} 49. Rxh4 {[%clk 0:05:03.9]} 49... Kb3 {[%clk 0:07:30.1]} 50.
Rh8 {[%clk 0:04:56.4]} 50... a4 {[%clk 0:07:31.3]} 51. Rb8+ {[%clk 0:04:56]}
51... Kc3 {[%clk 0:07:28.9]} 52. Ra8 {[%clk 0:04:55.1]} 52... Kb4 {[%clk
0:07:28.7]} 53. h4 {[%clk 0:04:51.6]} 53... a3 {[%clk 0:07:30.1]} 54. Kf3 {[%clk
0:04:48.8]} 54... Ra5 {[%clk 0:07:30]} 55. Rb8+ {[%clk 0:04:47.8]} 55... Kc3
{[%clk 0:07:29.1]} 56. Rb1 {[%clk 0:04:47]} 56... a2 {[%clk 0:07:29.9]} 57. Ra1
{[%clk 0:04:45.1]} 57... Kb2 {[%clk 0:07:31.8]} 58. Rxa2+ {[%clk 0:04:45.1]}
58... Kc3 {[%clk 0:07:33.7]} 59. Rxa5 {[%clk 0:04:44.3]} 59... Kb2 {[%clk
0:07:35.6]} 60. Rxf5 {[%clk 0:04:44.4]} 60... Ka2 {[%clk 0:07:37.5]} 61. Rxf4
{[%clk 0:04:45]} 61... Kb3 {[%clk 0:07:30.9]} 62. h5 {[%clk 0:04:45.6]} 1-0

[Event "GrandPrix_29.05"]
[Site "Chess.com"]
[Date "2020.05.29"]
[Round "3"]
[White "DaviD-GevorG"]
[Black "maciek_92"]
[Result "1-0"]
[WhiteElo "1854"]
[BlackElo "2030"]
[TimeControl "600+2"]
[EndTime "10:17:28 PDT"]
[Termination "DaviD-GevorG won by checkmate"]

1. Nf3 {[%clk 0:10:01.9]} 1... f5 {[%clk 0:09:58.3]} 2. g3 {[%clk 0:10:01.1]}
2... Nf6 {[%clk 0:09:58.8]} 3. Bg2 {[%clk 0:10:02.4]} 3... g6 {[%clk 0:09:59.4]}
4. O-O {[%clk 0:10:03.5]} 4... Bg7 {[%clk 0:10:00.7]} 5. d4 {[%clk 0:09:51.5]}
5... O-O {[%clk 0:09:58.2]} 6. c3 {[%clk 0:09:15.8]} 6... d6 {[%clk 0:09:43.1]}
7. Qb3+ {[%clk 0:09:09.8]} 7... e6 {[%clk 0:09:43.5]} 8. Ng5 {[%clk 0:08:58.4]}
8... d5 {[%clk 0:09:44.5]} 9. Nd2 {[%clk 0:08:39.1]} 9... h6 {[%clk 0:09:28.4]}
10. Nh3 {[%clk 0:08:18.2]} 10... g5 {[%clk 0:09:27]} 11. f3 {[%clk 0:08:19.2]}
11... c5 {[%clk 0:09:11.4]} 12. e4 {[%clk 0:06:28]} 12... cxd4 {[%clk
0:09:07.1]} 13. e5 {[%clk 0:05:50.4]} 13... Nfd7 {[%clk 0:09:02.8]} 14. cxd4
{[%clk 0:05:51.3]} 14... Nc6 {[%clk 0:09:04.4]} 15. Qe3 {[%clk 0:05:42.3]} 15...
Qb6 {[%clk 0:09:04.6]} 16. Nb3 {[%clk 0:05:43.2]} 16... a5 {[%clk 0:09:05.8]}
17. f4 {[%clk 0:05:24.6]} 17... a4 {[%clk 0:08:55.6]} 18. Nc5 {[%clk 0:05:20.7]}
18... Nxc5 {[%clk 0:07:54]} 19. dxc5 {[%clk 0:05:18.3]} 19... Qb4 {[%clk
0:07:38.4]} 20. fxg5 {[%clk 0:05:03.6]} 20... Bxe5 {[%clk 0:07:27.9]} 21. Kh1
{[%clk 0:04:45.8]} 21... Bd4 {[%clk 0:07:15.5]} 22. Qe2 {[%clk 0:04:44.8]} 22...
Qxc5 {[%clk 0:07:04.8]} 23. Qh5 {[%clk 0:04:39.6]} 23... Qe7 {[%clk 0:07:05.1]}
24. g6 {[%clk 0:03:57.9]} 24... a3 {[%clk 0:06:37.9]} 25. Bxh6 {[%clk
0:03:46.7]} 25... axb2 {[%clk 0:06:34.2]} 26. Bxf8 {[%clk 0:03:24.6]} 26... Kxf8
{[%clk 0:06:36.1]} 27. Rae1 {[%clk 0:03:18.4]} 27... Ne5 {[%clk 0:06:07.4]} 28.
Qh8# {[%clk 0:03:10.6]} 1-0

[Event "GrandPrix_29.05"]
[Site "Chess.com"]
[Date "2020.05.29"]
[Round "3"]
[White "titan013"]
[Black "Korona_91"]
[Result "1-0"]
[WhiteElo "1649"]
[BlackElo "1952"]
[TimeControl "600+2"]
[EndTime "10:17:54 PDT"]
[Termination "titan013 won by resignation"]

1. e4 {[%clk 0:10:01.9]} 1... g6 {[%clk 0:09:59.7]} 2. d4 {[%clk 0:10:02.7]}
2... Bg7 {[%clk 0:10:00]} 3. Nf3 {[%clk 0:10:04.1]} 3... d6 {[%clk 0:10:00.9]}
4. Nc3 {[%clk 0:10:05.6]} 4... Nd7 {[%clk 0:10:01.8]} 5. Be3 {[%clk 0:10:05.9]}
5... c6 {[%clk 0:10:01.4]} 6. Qd2 {[%clk 0:10:06.2]} 6... b5 {[%clk 0:09:57.7]}
7. a4 {[%clk 0:10:06.7]} 7... b4 {[%clk 0:09:57.6]} 8. Ne2 {[%clk 0:10:07.5]}
8... a5 {[%clk 0:09:57.9]} 9. Ng3 {[%clk 0:10:08.1]} 9... Qc7 {[%clk 0:09:54]}
10. c3 {[%clk 0:10:08]} 10... c5 {[%clk 0:09:48.7]} 11. Bb5 {[%clk 0:10:04.8]}
11... Nf6 {[%clk 0:09:27.4]} 12. e5 {[%clk 0:09:59.5]} 12... Nd5 {[%clk
0:09:19.9]} 13. e6 {[%clk 0:09:57.6]} 13... fxe6 {[%clk 0:09:16.1]} 14. Ng5
{[%clk 0:09:58.1]} 14... bxc3 {[%clk 0:09:10.1]} 15. bxc3 {[%clk 0:09:59]} 15...
cxd4 {[%clk 0:09:07.3]} 16. cxd4 {[%clk 0:09:59.5]} 16... Nxe3 {[%clk 0:08:15]}
17. fxe3 {[%clk 0:09:49.8]} 17... Qb6 {[%clk 0:07:09.4]} 18. Nxe6 {[%clk
0:09:26.5]} 18... Bf6 {[%clk 0:07:00.8]} 19. O-O {[%clk 0:09:22.6]} 19... d5
{[%clk 0:06:45.3]} 20. Nc5 {[%clk 0:09:08.3]} 20... Qd6 {[%clk 0:06:28.8]} 21.
Qa2 {[%clk 0:08:52.4]} 21... h5 {[%clk 0:05:51.8]} 22. Rab1 {[%clk 0:07:46.9]}
22... h4 {[%clk 0:05:37.7]} 23. Ne2 {[%clk 0:07:44.1]} 23... g5 {[%clk
0:04:21.3]} 24. Nc3 {[%clk 0:07:31.1]} 24... h3 {[%clk 0:03:21.5]} 25. g3 {[%clk
0:07:15.2]} 25... O-O {[%clk 0:02:42.9]} 26. N3e4 {[%clk 0:07:03.5]} 26... Qc7
{[%clk 0:02:30.3]} 27. Qxd5+ {[%clk 0:07:01.4]} 27... Kh8 {[%clk 0:02:24.4]} 28.
Bxd7 {[%clk 0:06:54.9]} 28... Bxd7 {[%clk 0:02:17.4]} 29. Qxd7 {[%clk
0:06:52.1]} 1-0

[Event "GrandPrix_29.05"]
[Site "Chess.com"]
[Date "2020.05.29"]
[Round "3"]
[White "Vazgen352"]
[Black "OparinGrigoriy"]
[Result "1/2-1/2"]
[WhiteElo "2546"]
[BlackElo "2416"]
[TimeControl "600+2"]
[EndTime "10:18:24 PDT"]
[Termination "Game drawn by agreement"]

1. c4 {[%clk 0:10:00.9]} 1... e6 {[%clk 0:10:00.2]} 2. g3 {[%clk 0:10:01.1]}
2... d5 {[%clk 0:10:01.3]} 3. Bg2 {[%clk 0:10:00.9]} 3... Nf6 {[%clk 0:10:02.9]}
4. Nf3 {[%clk 0:10:02.2]} 4... dxc4 {[%clk 0:10:02.8]} 5. Na3 {[%clk 0:10:03.1]}
5... Bxa3 {[%clk 0:10:02.8]} 6. bxa3 {[%clk 0:10:04]} 6... O-O {[%clk
0:10:04.3]} 7. O-O {[%clk 0:10:00.1]} 7... c5 {[%clk 0:10:02.2]} 8. Qc2 {[%clk
0:09:48.3]} 8... Nbd7 {[%clk 0:09:59]} 9. Qxc4 {[%clk 0:09:40.4]} 9... Rb8
{[%clk 0:09:53.2]} 10. a4 {[%clk 0:09:22.6]} 10... b6 {[%clk 0:09:52.5]} 11. Bb2
{[%clk 0:09:18.3]} 11... Bb7 {[%clk 0:09:52.9]} 12. a5 {[%clk 0:08:43.6]} 12...
b5 {[%clk 0:09:45]} 13. Qc2 {[%clk 0:08:06.2]} 13... Qxa5 {[%clk 0:09:35.6]} 14.
Bxf6 {[%clk 0:07:12.6]} 14... Nxf6 {[%clk 0:09:35.4]} 15. Qxc5 {[%clk
0:07:10.9]} 15... Rbc8 {[%clk 0:09:27.8]} 16. Qe3 {[%clk 0:07:06.4]} 16... Rc2
{[%clk 0:09:14.1]} 17. Nd4 {[%clk 0:06:44.6]} 17... Bxg2 {[%clk 0:09:06.9]} 18.
Kxg2 {[%clk 0:06:29.4]} 18... Rxa2 {[%clk 0:08:45]} 19. Nb3 {[%clk 0:05:33.4]}
19... Qa3 {[%clk 0:08:43.8]} 20. Rxa2 {[%clk 0:05:30.4]} 20... Qxa2 {[%clk
0:08:45.7]} 21. Ra1 {[%clk 0:05:31.5]} 21... Qc2 {[%clk 0:08:46.9]} 22. Rxa7
{[%clk 0:05:30.6]} 22... Ng4 {[%clk 0:08:39.4]} 23. Qc3 {[%clk 0:05:09.7]} 23...
Qd1 {[%clk 0:07:58.4]} 24. Nd4 {[%clk 0:04:56.3]} 24... Qe1 {[%clk 0:07:45]} 25.
Qf3 {[%clk 0:04:42]} 25... Ne5 {[%clk 0:07:12.9]} 26. Qe4 {[%clk 0:04:26]} 26...
Nc4 {[%clk 0:07:02]} 27. Nf3 {[%clk 0:04:12.4]} 27... Nxd2 {[%clk 0:07:02.8]}
28. Qxh7+ {[%clk 0:04:05.5]} 28... Kxh7 {[%clk 0:07:04.7]} 29. Nxe1 {[%clk
0:04:06.7]} 29... Ne4 {[%clk 0:04:32.1]} 1/2-1/2

[Event "GrandPrix_29.05"]
[Site "Chess.com"]
[Date "2020.05.29"]
[Round "3"]
[White "Infernal_XaM"]
[Black "madamDD"]
[Result "1-0"]
[WhiteElo "2813"]
[BlackElo "2464"]
[TimeControl "600+2"]
[EndTime "10:18:41 PDT"]
[Termination "Infernal_XaM won by resignation"]

1. d4 {[%clk 0:10:01.9]} 1... Nf6 {[%clk 0:09:58.3]} 2. c4 {[%clk 0:10:02.6]}
2... b6 {[%clk 0:09:51.1]} 3. f3 {[%clk 0:09:53.3]} 3... Nc6 {[%clk 0:09:48.1]}
4. e4 {[%clk 0:09:53.4]} 4... e5 {[%clk 0:09:42.7]} 5. dxe5 {[%clk 0:09:53.5]}
5... Nxe5 {[%clk 0:09:32.2]} 6. Nc3 {[%clk 0:09:54.1]} 6... Bc5 {[%clk
0:09:20.2]} 7. Bf4 {[%clk 0:09:43.5]} 7... Ng6 {[%clk 0:08:48]} 8. Bg3 {[%clk
0:09:44]} 8... Nh5 {[%clk 0:08:24.5]} 9. Qd2 {[%clk 0:09:42.6]} 9... d6 {[%clk
0:07:49.7]} 10. Bd3 {[%clk 0:09:37.5]} 10... Be6 {[%clk 0:07:35]} 11. f4 {[%clk
0:09:15.2]} 11... Nxg3 {[%clk 0:06:12]} 12. hxg3 {[%clk 0:09:15.8]} 12... Bg4
{[%clk 0:06:12.9]} 13. Nf3 {[%clk 0:09:15.1]} 13... Ne7 {[%clk 0:05:47.1]} 14.
a3 {[%clk 0:09:13.2]} 14... a5 {[%clk 0:05:40]} 15. O-O-O {[%clk 0:09:11.8]}
15... Qd7 {[%clk 0:05:33.8]} 16. Be2 {[%clk 0:09:01.6]} 16... O-O-O {[%clk
0:05:17.9]} 17. Ng5 {[%clk 0:08:56.4]} 17... Bxe2 {[%clk 0:04:32]} 18. Nxe2
{[%clk 0:08:44.1]} 18... Nc6 {[%clk 0:04:17.9]} 19. Qd5 {[%clk 0:08:42.9]} 19...
Qg4 {[%clk 0:03:45.5]} 20. Rde1 {[%clk 0:08:05.3]} 20... Ne5 {[%clk 0:01:53.7]}
21. Rh4 {[%clk 0:07:43.8]} 21... Be3+ {[%clk 0:01:47.8]} 22. Kb1 {[%clk
0:07:42]} 22... c6 {[%clk 0:01:48.6]} 23. Qxe5 {[%clk 0:07:17.8]} 23... dxe5
{[%clk 0:01:25.6]} 24. Rxg4 {[%clk 0:07:18.1]} 24... h5 {[%clk 0:01:13]} 25. Rh4
{[%clk 0:07:19.1]} 25... Rd2 {[%clk 0:01:11.3]} 26. Nf3 {[%clk 0:07:17.2]} 26...
Bf2 {[%clk 0:01:00]} 27. Nxd2 {[%clk 0:07:14.1]} 27... Bxe1 {[%clk 0:01:01.1]}
28. Nf3 {[%clk 0:07:15.7]} 1-0

[Event "GrandPrix_29.05"]
[Site "Chess.com"]
[Date "2020.05.29"]
[Round "3"]
[White "gliglu"]
[Black "Lukianoo"]
[Result "0-1"]
[WhiteElo "2368"]
[BlackElo "2746"]
[TimeControl "600+2"]
[EndTime "10:18:42 PDT"]
[Termination "Lukianoo won by resignation"]

1. d4 {[%clk 0:10:01.9]} 1... Nf6 {[%clk 0:10:00.1]} 2. c4 {[%clk 0:10:01.7]}
2... e6 {[%clk 0:09:58.7]} 3. Nf3 {[%clk 0:10:01.5]} 3... Bb4+ {[%clk
0:09:56.1]} 4. Nbd2 {[%clk 0:10:02]} 4... b6 {[%clk 0:09:56.8]} 5. g3 {[%clk
0:10:01.7]} 5... Bb7 {[%clk 0:09:57.3]} 6. Bg2 {[%clk 0:10:02.4]} 6... O-O
{[%clk 0:09:58]} 7. O-O {[%clk 0:10:01.7]} 7... a5 {[%clk 0:09:59]} 8. a3 {[%clk
0:09:45.1]} 8... Bxd2 {[%clk 0:09:58.1]} 9. Bxd2 {[%clk 0:09:45.3]} 9... a4
{[%clk 0:09:57.6]} 10. Rc1 {[%clk 0:09:04.4]} 10... d6 {[%clk 0:09:57.4]} 11. d5
{[%clk 0:08:49.8]} 11... exd5 {[%clk 0:09:42.1]} 12. Nd4 {[%clk 0:08:49.3]}
12... Qc8 {[%clk 0:09:37.6]} 13. cxd5 {[%clk 0:08:27.6]} 13... Bxd5 {[%clk
0:09:39.5]} 14. f3 {[%clk 0:08:05.3]} 14... c5 {[%clk 0:09:34.8]} 15. e4 {[%clk
0:08:04]} 15... Qd7 {[%clk 0:08:30.3]} 16. Nf5 {[%clk 0:07:30.4]} 16... Be6
{[%clk 0:08:15.1]} 17. g4 {[%clk 0:06:10.4]} 17... Bxf5 {[%clk 0:08:08.6]} 18.
gxf5 {[%clk 0:06:09.5]} 18... Nc6 {[%clk 0:08:08.4]} 19. Bc3 {[%clk 0:06:09.8]}
19... Qe7 {[%clk 0:08:04.7]} 20. Qd2 {[%clk 0:05:53.3]} 20... Rad8 {[%clk
0:07:58.7]} 21. Qg5 {[%clk 0:05:42.8]} 21... Nd4 {[%clk 0:07:49]} 22. Kh1 {[%clk
0:04:32.1]} 22... h6 {[%clk 0:07:48.1]} 23. Qh4 {[%clk 0:04:16.4]} 23... Nd5
{[%clk 0:07:43.8]} 24. Qxe7 {[%clk 0:04:07.4]} 24... Nxe7 {[%clk 0:07:44.2]} 25.
Bxd4 {[%clk 0:04:05.8]} 25... cxd4 {[%clk 0:07:46.1]} 26. Rc4 {[%clk 0:04:06.5]}
26... d5 {[%clk 0:07:42]} 27. Rxd4 {[%clk 0:04:03.9]} 27... dxe4 {[%clk
0:07:42.8]} 28. Rxe4 {[%clk 0:03:56.7]} 28... Nxf5 {[%clk 0:07:42.2]} 29. Rxa4
{[%clk 0:03:56.1]} 29... Ne3 {[%clk 0:07:08.4]} 30. Rg1 {[%clk 0:03:55.1]} 30...
Rd2 {[%clk 0:07:07.6]} 31. Rb4 {[%clk 0:03:47.4]} 31... Rc8 {[%clk 0:07:08.4]}
32. Rb3 {[%clk 0:03:33.7]} 32... Nxg2 {[%clk 0:07:03.2]} 33. Rxg2 {[%clk
0:03:34.4]} 33... Rc1+ {[%clk 0:07:03.9]} 34. Rg1 {[%clk 0:03:35.3]} 34... Rcc2
{[%clk 0:07:05.4]} 35. Re1 {[%clk 0:03:24.7]} 35... Rxh2+ {[%clk 0:07:04.7]} 36.
Kg1 {[%clk 0:03:25.6]} 36... Rcg2+ {[%clk 0:07:03.2]} 37. Kf1 {[%clk 0:03:26.4]}
37... Rxb2 {[%clk 0:07:02.1]} 38. Rxb2 {[%clk 0:03:26.3]} 38... Rxb2 {[%clk
0:07:02.1]} 39. Re7 {[%clk 0:03:26.9]} 39... Rb3 {[%clk 0:07:01.7]} 40. Kg2
{[%clk 0:03:24.3]} 40... Rxa3 {[%clk 0:07:02.5]} 41. Rb7 {[%clk 0:03:25.3]}
41... Rb3 {[%clk 0:07:03.2]} 42. Kg3 {[%clk 0:03:26.3]} 42... b5 {[%clk
0:07:03.9]} 43. Kg4 {[%clk 0:03:27.1]} 43... b4 {[%clk 0:07:04.3]} 44. f4 {[%clk
0:03:28.2]} 44... Rb1 {[%clk 0:07:04]} 45. Kf5 {[%clk 0:03:28.8]} 45... b3
{[%clk 0:07:04.4]} 46. Rb8+ {[%clk 0:03:28.9]} 46... Kh7 {[%clk 0:07:04.7]} 47.
Rb7 {[%clk 0:03:30]} 47... b2 {[%clk 0:07:05.2]} 48. Rb8 {[%clk 0:03:28.2]}
48... h5 {[%clk 0:07:05.7]} 49. Rb7 {[%clk 0:03:21.5]} 49... h4 {[%clk
0:07:06.3]} 50. Rb3 {[%clk 0:03:22]} 50... f6 {[%clk 0:07:03.5]} 51. Rb7 {[%clk
0:03:18.6]} 51... h3 {[%clk 0:06:55.3]} 52. Rb3 {[%clk 0:03:19.1]} 52... Kg8
{[%clk 0:06:56.2]} 0-1